Cogmind - Beta 10.2 *** ADVENTURER MODE // 2021.07.08 @ 06:10:53 Player: Salamander Result: Self-destructed Performance ------------- Evolutions (2) 1000 Regions Visited (5) 1000 Robots Destroyed (21) 105 Value Destroyed (500) 500 Prototype IDs (4) 80 Alien Tech Used (0) 0 Bonus (39) 39 TOTAL SCORE: 2724 Bonus ------- Follower Combat Kills 39 Cogmind --------- Core Integrity 414/550 Matter 381/400 Energy 32/125 System Corruption 0% Temperature Cool (0) Movement Hovering (76) Location -8/Materials Parts ------- > --- POWER (2) -------- Light Ion Engine > --- PROPULSION (3) --- Backup Propulsion I Combat Airjet > --- UTILITY (3) ------ Small Storage Unit Medium Matter Pod Improved ECM Suite > --- WEAPON (3) ------- Katana > --- INVENTORY (6) ---- Aluminum Leg Compact Wheel Welding Torch Mining Claw Peak State ------------ > --- POWER ------------ Light Ion Engine Backup Power I > --- PROPULSION ------- Backup Propulsion I Combat Airjet > --- UTILITY ---------- Small Storage Unit Medium Matter Pod Improved ECM Suite > --- WEAPON ----------- Pulse Rifle Grenade Launcher Katana > --- INVENTORY -------- Aluminum Leg Compact Wheel Welding Torch Mining Claw [Rating: 20] Favorites ----------- Power Light Ion Engine Engine Light Ion Engine Propulsion Compact Wheel Leg Aluminum Leg Wheel Compact Wheel Hover Unit Combat Airjet Flight Unit Flight Unit Utility Small Storage Unit Device Improved ECM Suite Storage Small Storage Unit Weapon Small Laser Energy Gun Small Laser Ballistic Gun Light Assault Rifle Launcher Grenade Launcher Special Weapon Welding Torch Slashing Weapon Katana Build | -11 -10 -10 -10 -9 -8 ------- Run | Scr Mat Min Exi Min Mat Slots Evolved 4 | . . . . . 4 Power 1 | . . . . . 1 Propulsion 1 | . . . . . 1 Utility 1 | . . . . . 1 Weapon 1 | . . . . . 1 Parts Attached 40 | 7 11 8 1 5 8 Power 6 | 1 1 2 1 1 . Engine 6 | 1 1 2 1 1 . Core . | . . . . . . Reactor . | . . . . . . Propulsion 10 | 2 3 3 . 1 1 Treads . | . . . . . . Leg 1 | . . . . . 1 Wheel 6 | 2 3 1 . . . Hover 1 | . . . . 1 . Flight 2 | . . 2 . . . Utility 5 | 1 1 . . . 3 Device 1 | . . . . . 1 Storage 4 | 1 1 . . . 2 Processor . | . . . . . . Hackware . | . . . . . . Protection . | . . . . . . Artifact . | . . . . . . Weapon 19 | 3 6 3 . 3 4 Energy Gun 7 | 1 3 1 . . 2 Energy Cannon . | . . . . . . Ballistic Gun 5 | 2 1 2 . . . Ballistic Cannon . | . . . . . . Launcher 1 | . . . . 1 . Special Weapon 2 | . 2 . . . . Impact Weapon . | . . . . . . Slashing Weapon 4 | . . . . 2 2 Piercing Weapon . | . . . . . . Special Melee Weapon . | . . . . . . Unidentified Prototypes . | . . . . . . Parts Lost 6 | . 1 2 . . 3 Power 2 | . . 1 . . 1 Propulsion . | . . . . . . Utility . | . . . . . . Weapon 4 | . 1 1 . . 2 Highest Loss Streak 3 | . 1 2 . . 3 Average Slot Usage (%) 85 | . 84 84 85 92 79 Engine 14 | . 14 13 14 14 16 Wheel 14 | . 28 10 14 14 . Hover 4 | . . . . 8 16 Flight 1 | . . 6 . . . Storage 23 | . 14 28 28 28 16 Energy Gun 12 | . 15 15 14 6 7 Ballistic Gun 7 | . 3 9 14 6 . Launcher 2 | . . . . 7 9 Special Weapon 1 | . 8 . . . . Slashing Weapon 2 | . . . . 5 7 Naked Turns . | . . . . . . Heaviest Build 20 | 10 12 13 11 14 20 Greatest Support 28 | 20 20 20 16 22 28 Greatest Overweight (x) 3 | . . 3 . . . Average Overweight (x) . | . . . . . . Largest Inventory Capacity 6 | 6 6 6 6 6 6 Average Capacity 5 | 4 6 6 6 6 5 Most Carried 6 | 2 6 6 6 6 5 Average Carried 4 | . 5 4 4 3 4 Final Capacity 6 | 6 6 6 6 6 6 Final Carried 5 | 2 5 4 4 3 4 Class Distribution -------------------- 92% | Mutant 7% | Scavenger-Mutant Dominant Class ---------------- Mutant | -10/Materials Mutant | -10/Mines Mutant | -10/Exiles Mutant | -9/Mines Mutant | -8/Materials Resources | -11 -10 -10 -10 -9 -8 ----------- Run | Scr Mat Min Exi Min Mat Matter Collected 727 | 174 152 207 . 138 56 Remotely . | . . . . . . Salvage Created 609 | . 102 225 . 226 56 Parts 40 | . 9 25 . 5 1 Haulers Intercepted . | . . . . . . Recyclers Shooed . | . . . . . . Parts Field Recycled . | . . . . . . Retrieved Matter . | . . . . . . Parts Self-Destructed . | . . . . . . Prevented . | . . . . . . Kills | -11 -10 -10 -10 -9 -8 ------- Run | Scr Mat Min Exi Min Mat Combat Hostiles Destroyed 22 | . 2 11 . 7 2 Melee 2 | . . . . 1 1 Guns 18 | . 1 11 . 5 1 AOE 1 | . . . . 1 . Classes Destroyed 8 | . 3 1 . 4 . Worker 1 | . 1 . . . . Recycler 1 | . . . . 1 . Watcher 1 | . 1 . . . . Swarmer 9 | . . 9 . . . Grunt 7 | . 2 2 . 1 2 Duelist 1 | . . . . 1 . Demolisher 1 | . . . . 1 . Assembled 4 | . . . . 4 . Best Kill Streak 5 | . 2 3 . 5 1 Combat Bots Only 5 | . 2 3 . 5 1 Max Kills in Single Turn 2 | . 1 2 . 1 1 Gunslinging 1 | . . 1 . . . Exploded 1 | . . . . 1 . Melee 1 | . . . . 1 1 Uniques/NPCs Destroyed . | . . . . . . Combat | -11 -10 -10 -10 -9 -8 -------- Run | Scr Mat Min Exi Min Mat Damage Taken 1116 | . 185 232 . 239 460 Core 353 | . 48 58 . 111 136 Absorbed by Shields . | . . . . . . Core Remaining (%) 56 | 100 . . . 13 . Volleys Fired 101 | . 33 30 . 24 14 Largest 2 | . 2 2 . 2 2 Hottest 93 | . 90 90 . 60 93 Shots Fired 139 | . 35 45 . 44 15 Gun 112 | . 13 45 . 40 14 Cannon . | . . . . . . Launcher 5 | . . . . 4 1 Special 22 | . 22 . . . . Kinetic 26 | . . 6 . 20 . Thermal 108 | . 35 39 . 20 14 Explosive 5 | . . . . 4 1 Electromagnetic . | . . . . . . Robot Hit Streak 32 | . 11 9 . 32 12 Robot Miss Streak 2 | . 1 2 . 2 1 Penetration Max . | . . . . . . Secondary Targets 7 | . . 3 . 4 . Max Gunslinging Chain 1 | . . 1 . 1 . Shots Hit Robots 116 | . 23 31 . 45 17 Core Hits 45 | . 8 14 . 18 5 Critical Hits . | . . . . . . Critical Kills . | . . . . . . Critical Parts Destroyed . | . . . . . . Melee Attacks 10 | . . . . 5 5 Impact . | . . . . . . Slashing 10 | . . . . 5 5 Piercing . | . . . . . . Sneak Attacks . | . . . . . . Combat Hostiles . | . . . . . . Follow-up Attacks . | . . . . . . Damage Inflicted 1391 | . 149 345 . 513 384 Guns 938 | . 112 345 . 265 216 Cannons . | . . . . . . Explosions 238 | . . . . 162 76 Melee 178 | . . . . 86 92 Ramming . | . . . . . . Kinetic 111 | . . 7 . 104 . Thermal 864 | . 149 338 . 161 216 Explosive 238 | . . . . 162 76 Electromagnetic . | . . . . . . Impact . | . . . . . . Slashing 178 | . . . . 86 92 Piercing . | . . . . . . Highest Corruption . | . . . . . . Average Corruption . | . . . . . . Corruption Purged . | . . . . . . Overload Shots . | . . . . . . Overflow Damage 20 | . . . . . 20 Projectiles . | . . . . . . Explosions . | . . . . . . Melee 20 | . . . . . 20 Knockbacks . | . . . . . . Impact . | . . . . . . Kinetic . | . . . . . . Secondary . | . . . . . . Self-Inflicted Damage 8 | . . . . 8 . Shots 1 | . . . . 1 . Rammed . | . . . . . . Targets Rammed . | . . . . . . Kicked . | . . . . . . Crushed . | . . . . . . Highest Temperature 270 | . 80 270 . 40 117 Average Temperature 60 | . 23 94 . 21 54 Received Heat Transfer 336 | . 114 69 . . 153 Siege Activations . | . . . . . . Robots Corrupted . | . . . . . . Combat Hostiles . | . . . . . . Parts Fried . | . . . . . . Impact Corruptions . | . . . . . . Robots Melted 1 | . 1 . . . . Combat Hostiles 1 | . 1 . . . . Parts Melted 5 | . . 5 . . . Heat Transferred 2289 | . 599 834 . 375 481 Parts Sabotaged . | . . . . . . Parts Stolen . | . . . . . . Parts Stripped . | . . . . . . Power Chain Reactions . | . . . . . . Missiles Intercepted . | . . . . . . Alert | -11 -10 -10 -10 -9 -8 ------- Run | Scr Mat Min Exi Min Mat Peak Influence 262 | . 63 262 . 109 70 Initial 7 | . . 7 . . . Average 59 | . 18 130 . 44 27 Maximum Alert Level 1 | . . 1 . . . Low Security (%) 95 | 100 100 85 . 100 100 Level 1 4 | . . 14 . . . Level 2 . | . . . . . . Level 3 . | . . . . . . Level 4 . | . . . . . . Level 5 . | . . . . . . High Security . | . . . . . . Max Security . | . . . . . . Squads Dispatched 4 | . 1 . . . 3 Investigation 4 | . 1 . . . 3 Extermination . | . . . . . . Reinforcement . | . . . . . . Assault . | . . . . . . Garrison . | . . . . . . Intercept . | . . . . . . Construction Impeded . | . . . . . . Haulers Reinforced . | . . . . . . Stealth | -11 -10 -10 -10 -9 -8 --------- Run | Scr Mat Min Exi Min Mat Distress Signals . | . . . . . . Communications Jammed . | . . . . . . Distress Signals . | . . . . . . Times Spotted 32 | . 5 12 . 9 6 Peak Tracking Total 4 | . 2 3 . 4 3 Tactical Retreats 2 | . . 1 . . 1 Traps | -11 -10 -10 -10 -9 -8 ------- Run | Scr Mat Min Exi Min Mat Traps Triggered 2 | . 1 . . . 1 Indirectly . | . . . . . . Trap Hack Attempts . | . . . . . . Triggered . | . . . . . . Disarmed 2 | . 2 . . . . Reprogrammed . | . . . . . . Reused . | . . . . . . Traps Extracted . | . . . . . . Installed . | . . . . . . Triggered . | . . . . . . Machines | -11 -10 -10 -10 -9 -8 ---------- Run | Scr Mat Min Exi Min Mat Machines Disabled 1 | . . . . 1 . Max in Single Turn 1 | . . . . 1 . Machines Sabotaged . | . . . . . . Garrisons Compromised . | . . . . . . Overloaded Fab Kills . | . . . . . . Fab Network Shutdowns . | . . . . . . Hacking | -11 -10 -10 -10 -9 -8 --------- Run | Scr Mat Min Exi Min Mat Machines Accessed 9 | . 5 . 1 . 3 Terminals 6 | . 4 . . . 2 Fabricators . | . . . . . . Repair Stations 1 | . . . . . 1 Recycling Units 1 | . 1 . . . . Scanalyzers . | . . . . . . Garrison Access . | . . . . . . Total Hacks 49 | . 20 . 7 . 22 Successful 38 | . 13 . 7 . 18 Failed 11 | . 7 . . . 4 Catastrophic . | . . . . . . Database Lockouts . | . . . . . . Manual . | . . . . . . Terminals 29 | . 16 . . . 13 Fabricators . | . . . . . . Repair Stations 9 | . . . . . 9 Recycling Units 4 | . 4 . . . . Scanalyzers . | . . . . . . Garrison Access . | . . . . . . Terminal Hacks 28 | . 12 . 7 . 9 Record 16 | . 5 . 7 . 4 Robot Analysis 1 | . 1 . . . . Prototype ID Bank 2 | . 1 . . . 1 Emergency Access Points 1 | . . . . . 1 Alert Level 2 | . 2 . . . . Locate Traps 1 | . 1 . . . . Disarm Traps 2 | . 2 . . . . Dispatch Records 1 | . . . . . 1 Hauler Manifests 1 | . . . . . 1 Zone Layout 1 | . . . . . 1 Fabricator Hacks . | . . . . . . Repair Station Hacks 9 | . . . . . 9 Scan Component 4 | . . . . . 4 Repair 4 | . . . . . 4 Refit 1 | . . . . . 1 Recycling Unit Hacks 1 | . 1 . . . . Report Inventory 1 | . 1 . . . . Scanalyzer . | . . . . . . Garrison Access Hacks . | . . . . . . Unauthorized Hacks . | . . . . . . Terminals . | . . . . . . Fabricators . | . . . . . . Repair Stations . | . . . . . . Recycling Units . | . . . . . . Scanalyzers . | . . . . . . Garrison Access . | . . . . . . Data Cores Recovered . | . . . . . . Used . | . . . . . . Hacking Detections 8 | . 5 . . . 3 Full Trace Events 5 | . 2 . . . 3 Feedback Events . | . . . . . . Feedback Blocked . | . . . . . . Robot Schematics Acquired . | . . . . . . Robots Built . | . . . . . . Matter . | . . . . . . Time . | . . . . . . Total Robot Build Rating . | . . . . . . Part Schematics Acquired . | . . . . . . Parts Built . | . . . . . . Matter . | . . . . . . Time . | . . . . . . Total Part Build Rating . | . . . . . . Parts Repaired 4 | . . . . . 4 Time 128 | . . . . . 128 Parts Recycled . | . . . . . . Recycled Matter . | . . . . . . Retrieved Matter . | . . . . . . Retrieved Components . | . . . . . . Parts Scanalyzed . | . . . . . . Part Schematics Acquired . | . . . . . . Parts Damaged . | . . . . . . Bothacking | -11 -10 -10 -10 -9 -8 ------------ Run | Scr Mat Min Exi Min Mat Used RIF Installer . | . . . . . . Robots Hacked . | . . . . . . Non-combat . | . . . . . . Combat . | . . . . . . Robot Hacks Applied . | . . . . . . Relay Couplers Released . | . . . . . . Robots Rewired . | . . . . . . Allies Hacked . | . . . . . . Hacks Repelled . | . . . . . . Allies | -11 -10 -10 -10 -9 -8 -------- Run | Scr Mat Min Exi Min Mat Total Allies 3 | . . 3 . . . Largest Group 3 | . . 3 3 1 . Highest-Rated Group 40 | . . 40 40 16 . Highest-Rated Ally 16 | . . 16 16 16 . Total Orders 2 | . . 2 . . . FOLLOW 1 | . . 1 . . . AID 1 | . . 1 . . . Ally Attacks 7 | . . . . 7 . Total Damage 81 | . . . . 81 . Kills 1 | . . . . 1 . Allies Corrupted . | . . . . . . Allies Melted . | . . . . . . Intel | -11 -10 -10 -10 -9 -8 ------- Run | Scr Mat Min Exi Min Mat Robot Analysis Total 1 | . 1 . . . . Derelict Logs Recovered 2 | . . 1 . 1 . Drone Launches . | . . . . . . Drone Recoveries . | . . . . . . Exploration | -11 -10 -10 -10 -9 -8 ------------- Run | Scr Mat Min Exi Min Mat Turns Passed 2417 | 59 498 590 445 475 350 Spaces Moved 1690 | 58 264 361 435 392 180 Core 9 | 8 . 1 . . . Treads . | . . . . . . Legs . | . . . . . . Wheels 1195 | 50 264 338 435 108 . Hover 464 | . . . . 284 180 Flight 22 | . . 22 . . . Fastest Speed 37 | 50 80 37 100 85 76 Average Speed 90 | 75 80 98 100 89 77 Slowest Speed 200 | 80 80 200 100 100 80 Overloaded Moves . | . . . . . . Propulsion Burnouts . | . . . . . . Robots Hopped . | . . . . . . Cave-ins Triggered . | . . . . . . Exploration Rate (%) 42 | 4 32 45 87 77 9 Regions Visited 5 Branch Regions 3 Pre-discovered Areas . | . . . . . . Known Exits Taken . | . . . . . . Unknown Exits Taken 5 | 1 1 1 1 1 . Scrap Searched 2 | . . . . 2 . Spaces Dug . | . . . . . . Terrain Destroyed 29 | . . . . 22 7 Melee . | . . . . . . Projectile . | . . . . . . AOE 29 | . . . . 22 7 Terrain Rammed . | . . . . . . Walls Destroyed . | . . . . . . Machines Disabled . | . . . . . . Actions | -11 -10 -10 -10 -9 -8 --------- Run | Scr Mat Min Exi Min Mat Total 2420 | 72 511 555 445 469 368 Wait 523 | . 187 142 6 33 155 Move 1685 | 57 263 360 434 391 180 Hop . | . . . . . . Pick Up 35 | 8 10 7 2 5 3 Fast Attach 5 | . 1 . . 1 3 Attach 28 | 6 5 7 1 4 5 Detach 5 | . 1 1 . . 3 Swap 7 | 1 5 1 . . . Drop 21 | . 6 7 2 6 . Fire 101 | . 33 30 . 24 14 Melee 10 | . . . . 5 5 Ram . | . . . . . . Kick . | . . . . . . Crush . | . . . . . . Escape Stasis . | . . . . . . Rewire . | . . . . . . Trap . | . . . . . . Miscellaneous . | . . . . . . Route ------- -11/Scrapyard -10/Materials -10/Mines (discovered 2 exits: [*Mat] / *Exi) -10/Exiles -9/Mines -8/Materials (discovered 2 exits: Fac x2) History --------- Turn | Location | Event 19 | -11/Scrapyard | Discovered new exit (range 16) 60 | -11/Scrapyard | Entered Materials 314 | -10/Materials | Build established: Mutant 472 | -10/Materials | Discovered new exit (range 16) 558 | -10/Materials | Entered Mines 835 | -10/Mines | Learned location of 1 exit from Materials 840 | -10/Mines | Discovered new exit (range 8) 989 | -10/Mines | Assisted by bots powering up and referring to "LRC-V3" 1109 | -10/Mines | Deemed a non-threat by the Exiles lab entrance 1109 | -10/Mines | Discovered new exit (range 5) 1148 | -10/Mines | Entered Exiles 1148 | -10/Exiles | Accompanied by 3 allies 1191 | -10/Exiles | Met 8R-AWN 1210 | -10/Exiles | Met EX-HEX 1266 | -10/Exiles | Met EX-BIN 1354 | -10/Exiles | Met EX-DEC 1390 | -10/Exiles | Visited The Gauntlet 1581 | -10/Exiles | Discovered new exit (range 14) 1593 | -10/Exiles | Entered Mines 1593 | -9/Mines | Accompanied by 1 ally 1638 | -9/Mines | Found a hidden stash of uninstalled traps 1686 | -9/Mines | Assembled infested the area 1703 | -9/Mines | Core integrity fell below 50% 1867 | -9/Mines | Core integrity fell below 20% 1966 | -9/Mines | Discovered new exit (range 16) 1995 | -9/Mines | Learned location of 1 exit from Materials 2068 | -9/Mines | Entered Materials 2068 | -8/Materials | Evolved 4 slots: Power x1, Propulsion x1, Utility x1, Weapon x1 2069 | -8/Materials | Identified exit to Factory 2116 | -8/Materials | Repaired Sml. Storage Unit 2154 | -8/Materials | Repaired Katana 2188 | -8/Materials | Repaired Sml. Storage Unit 2352 | -8/Materials | Repaired Pulse Rifle 2418 | -8/Materials | Self-destructed Last Messages --------------- Acquired Pulse Rifle. K-01 Serf collects debris. Penetrated by Slug. Slug penetrates Earth. Penetrated by Slug. Slug penetrates Wall. Triggered Explosive Trap. An explosion rips through the floor. Penetrated by Slug. Pulse Rifle destroyed. Penetrated by Slug. Grenade Launcher destroyed. Penetrated by Slug. Backup Power I destroyed. U-05 Engineer lays Concrete. U-05 Engineer builds a Wall. Slug penetrates Wall. The unstable cave ceiling collapses. Penetrated by Slug. U-05 Engineer lays Concrete. Map ----- +----------------------------------------------------+ | ?????????????????????????????????????????????????? | | ?????????????????????????????????????????????????? | | ?????????????????????????????????????????????????? | | ?????????????????????????????????????????????????? | | ?????????????????????????????????????????????????? | | ?????????????????????????????????????????????????? | | ?????????????????????????????????????????????????? | | ?????????????????????????????????????????????????? | | ?????????????????????????????????????????????????? | | ?????????????????????????????????????????????????? | | ?????????????????????????????????????????????????? | | ?????????????????????????????????????????????????? | | ?????????????????????? ??????????????????????????? | | ?????????????????????? ??????????????????????????? | | ?????????????????????? ??????????????????????????? | | ?????????????????????? ??????????????????????????? | | ?????????????????????# ??????????????????????????? | | ?????????????????????# ?????????????? ???????????? | | ?????????????????????# ?????????????? ???????????? | | ?????????????????????# #????????????? ???????????? | | ?????????????????????# #????????????? ???????????? | | ????????????????????## ########?????? ???????????? | | ????????????????????? # ! #?????? ???????????? | | ?????????????????????# # #?????# ???????????? | | ????????????????????##u# """#?????# #??????????? | | ????????????????????## @ Y"#?????# #??????????? | | ????????????????????## """#?????# #??????????? | | ????????????????????# #?????# #??????????? | | ????????????????????# #######?????# #??????????? | | ????????????????????#gh##???????????# ############ | | ????????????????????## #???????????## | | ?????????????????????# ############# | | ?????????????????????# | | ????????????????????#####+####+#+## ############ | | ????????????????????# # #???????? | | ????????????????????#"" # # #???????? | | ????????????????????#"T # """ ! """ #???????? | | ????????????????????#"" # """ |# "R #???????? | | ????????????????????# + """ # """ #???????? | | ????????????????????# # # #???????? | | ????????????????????######################???????? | | ?????????????????????????????????????????????????? | | ?????????????????????????????????????????????????? | | ?????????????????????????????????????????????????? | | ?????????????????????????????????????????????????? | | ?????????????????????????????????????????????????? | | ?????????????????????????????????????????????????? | | | | | | | +----------------------------------------------------+ Best States ------------- Heat Dissipation 31 Energy Generation 14 Energy Capacity 250 Matter Stores 400 Matter Capacity 400 Sight Range 16 Terrain Scan Density 10 ECM Strength 2 Resistance: KI 20 Resistance: TH 20 Resistance: EX 20 Resistance: EM 20 Resistance: I 20 Resistance: S 20 Resistance: P 20 Evasion (%) 57 Offensive Hacking 10 Item Schematics ----------------- None Robot Schematics ------------------ None Fabricated ------------ Nothing Alien Tech Used ----------------- None Achievements -------------- It's Just You Challenges ------------ None Game ------ Seed PointThrusterNetwork Manual? 0 Play Time 00:28:31 Cumulative 6.7 hours Start 2021.07.07 @ 22:29:19 End 2021.07.08 @ 06:10:53 Sessions 3 Manual Loads 0 Difficulty Adventurer Special Mode None Game No. 8 Rogue 0 Adventurer 8 Explorer 0 Win Type - Total 0 Types 0/0/0/0/0/0/0/0/0 Lore% 12 Gallery% 11 Achievement% 10 Wizard Run 0 Options --------- ASCII 0 Keyboard 0 Movement Mouse Keybinds 0 Fullscreen 1 Font 20/SmallcapsGlow Map View 66x50 Tactical HUD 0 Map Filters NONE Filters NONE Steam 1 RUN: dd148cd1-01b4-4bc2-8ee4-7aceb04279e4